bitfinex-derivatives/quotes_ETHF0:USTF0_20210705
["timestamp","ask_amount","ask_price","bid_price","bid_amount"]
[1625466038160,7.93174,2285.8,2285.6,2.20527]
[1625466038657,1.0,2286.3,2285.7,18.402556]
[1625466039307,2.20527,2285.8,2285.7,18.402556]
[1625466041825,3.20527,2285.8,2285.7,18.402556]
[1625466042027,2.20527,2285.8,2285.7,18.402556]
[1625466042431,3.20527,2285.8,2285.7,18.402556]
[1625466042932,2.20527,2285.8,2285.7,18.402556]
[1625466043634,3.20527,2285.8,2285.7,18.402556]
[1625466044243,2.20527,2285.8,2285.7,18.402556]
[1625466048299,1.0,2286.5,2285.7,18.402556]
[1625466049399,2.20527,2286.0,2285.9,2.20527]
[1625466049700,2.20527,2286.0,2285.9,18.185039]
[1625466049899,2.20527,2286.0,2285.9,15.979769]
[1625466050270,2.20527,2286.0,2285.8,15.963953]
[1625466050853,2.20527,2286.0,2285.6,15.856001]
[1625466051054,2.20527,2286.0,2285.6,18.941001]
[1625466051463,2.20527,2285.7,2285.6,18.941001]
[1625466051566,2.20527,2285.7,2285.6,3.085]
[1625466052307,2.20527,2285.7,2285.5,0.05]
[1625466053177,4.55847,2285.7,2285.5,0.05]
[1625466053308,5.55847,2285.7,2285.5,0.05]
[1625466053410,2.20527,2285.6,2285.5,0.05]
[1625466053511,3.20527,2285.6,2285.5,0.05]
[1625466053911,3.20527,2285.6,2284.4,2.20527]
[1625466054465,3.20527,2285.6,2284.5,15.87122]
[1625466055466,4.41054,2284.6,2284.5,15.87122]
[1625466055867,3.37421613,2284.6,2284.5,15.87122]
[1625466056078,0.78339913,2284.6,2284.5,15.87122]
[1625466057440,2.20527,2284.9,2284.5,15.87122]
[1625466059444,2.20527,2284.9,2284.8,2.20527]
[1625466059795,3.20527,2284.9,2284.8,2.20527]
[1625466063052,3.20527,2284.9,2284.4,2.20527]
[1625466063154,6.52307,2284.9,2283.6,1.2204683]
[1625466063459,2.20527,2283.9,2283.8,2.20527]
[1625466063554,5.10227,2283.9,2283.8,2.20527]
[1625466064306,6.10227,2283.9,2283.8,2.20527]
[1625466064507,5.10227,2283.9,2283.8,2.20527]
[1625466064609,6.10227,2283.9,2283.8,2.20527]
[1625466065509,8.30754,2283.9,2283.8,2.20527]
[1625466066662,8.30754,2283.9,2283.5,2.20527]
[1625466067311,8.30754,2283.9,2282.5,1.2277804]
[1625466067312,8.30754,2283.9,2283.6,15.794093]
[1625466067513,8.30754,2283.9,2283.6,15.749093]
[1625466067613,8.30754,2283.9,2282.9,2.20527]
[1625466068413,8.30754,2283.9,2282.4,14.4633]
[1625466068564,51.1311,2283.8,2282.4,14.4633]
[1625466068662,1.0,2283.7,2282.4,14.4633]
[1625466069064,1.0,2283.7,2282.0,1.22842422]
[1625466069266,1.0,2283.7,2281.9,1.22898487]
[1625466069463,1.0,2283.7,2281.9,1.27898487]
[1625466069566,2.20527,2282.4,2282.3,2.20527]
[1625466069668,5.29757,2282.4,2282.3,2.20527]
[1625466069865,5.29757,2282.4,2282.3,17.987904]
[1625466070067,2.70487962,2282.4,2282.3,17.987904]
[1625466070168,2.70487962,2282.4,2282.3,2.20527]
[1625466071065,1.66776706,2282.4,2282.3,2.20527]
[1625466071268,1.66776706,2282.4,2282.3,18.163249]
[1625466071467,1.66776706,2282.4,2282.3,2.20527]
[1625466071567,6.07830706,2282.4,2282.3,2.20527]
[1625466072221,6.07830706,2282.4,2282.3,18.20714]
[1625466073073,1.66776706,2282.4,2282.3,18.20714]
[1625466073173,1.0,2283.7,2282.3,18.20714]
[1625466073278,1.0,2283.7,2282.3,21.22774]
[1625466073581,2.20527,2283.3,2283.2,5.09997]
[1625466073673,3.20527,2283.3,2283.2,5.09997]
[1625466074326,2.20527,2283.3,2283.2,5.09997]
[1625466074627,3.20527,2283.3,2283.2,5.09997]
[1625466074834,4.07867,2283.3,2283.2,2.8947]
[1625466074936,3.20527,2283.3,2283.2,2.8947]
[1625466075035,3.20527,2283.3,2282.3,3.0206]
[1625466075533,3.20527,2283.3,2282.9,2.20527]
[1625466076296,3.20527,2283.3,2283.0,15.862204]
[1625466077451,3.20527,2283.3,2282.9,2.20527]
[1625466077557,2.20527,2283.0,2282.9,2.20527]
[1625466077663,3.20527,2283.0,2282.9,2.20527]
[1625466078203,3.20527,2283.0,2282.6,2.20527]
[1625466079206,3.20527,2283.0,2282.7,15.883943]
[1625466079559,2.20527,2282.8,2282.7,15.883943]
[1625466080609,1.0,2283.3,2282.7,15.883943]
[1625466080710,0.8749,2284.3,2282.7,15.883943]
[1625466080810,5.0,2285.0,2282.7,15.883943]
[1625466081312,0.877,2285.1,2282.7,15.883943]
[1625466081613,2.20527,2283.6,2283.5,2.20527]
[1625466081713,3.20527,2283.6,2283.5,5.54967]
[1625466082164,1.0,2283.6,2283.5,5.54967]
[1625466082367,0.877,2285.1,2283.5,5.54967]
[1625466082665,1.0,2284.6,2283.5,5.54967]
[1625466083618,2.20527,2283.6,2283.5,5.54967]
[1625466084769,2.20527,2283.6,2283.5,21.375833]
[1625466084924,1.0,2284.6,2283.5,21.375833]
[1625466085419,14.4606,2285.0,2283.5,21.375833]
[1625466085521,1.0,2284.9,2283.5,21.375833]
[1625466085619,3.20527,2284.9,2284.8,2.20527]
[1625466086022,2.20527,2284.9,2284.8,2.20527]
[1625466087622,4.41054,2284.9,2284.8,2.20527]
[1625466088928,5.41054,2284.9,2284.8,2.20527]
[1625466089227,4.41054,2284.9,2284.8,2.20527]
[1625466089338,13.973,2286.2,2284.8,2.20527]
[1625466089428,14.4461,2286.4,2284.8,2.20527]
[1625466089628,2.20527,2285.4,2284.8,2.20527]
[1625466089728,2.20527,2285.4,2284.9,15.800963]
[1625466089836,2.20527,2285.4,2284.9,18.056963]
[1625466090037,2.20527,2285.4,2285.1,53.9626]
[1625466090387,2.20527,2285.4,2285.2,15.842869]
[1625466090493,3.20527,2285.7,2285.2,15.842869]
[1625466091044,2.20527,2285.7,2285.2,15.842869]
[1625466091447,3.20527,2285.7,2285.2,15.842869]
[1625466091698,3.20527,2285.7,2285.6,2.20527]
[1625466093648,3.20527,2285.7,2285.3,2.20527]
[1625466095709,2.20527,2285.4,2285.3,2.20527]
[1625466096809,3.20527,2285.4,2285.3,2.20527]
[1625466097211,2.20527,2285.4,2285.3,2.20527]
[1625466097612,5.70057,2285.4,2285.1,2.20527]
[1625466097712,2.20527,2285.2,2284.6,2.20527]
[1625466097813,3.20527,2285.2,2284.6,2.20527]
[1625466099268,3.20527,2285.2,2284.4,2.20527]
[1625466099669,2.20527,2284.5,2284.4,4.41054]
[1625466100119,7e-05,2284.5,2284.4,4.41054]
[1625466100220,3.4367,2287.5,2284.4,4.41054]
[1625466100329,44.22633224,2287.8,2284.4,7.82674]
[1625466100433,1.27483224,2287.8,2284.4,7.87674]
[1625466100523,0.8709,2287.3,2284.5,1.0]
[1625466100919,2.14207583,2288.5,2284.5,1.0]
[1625466101020,14.2128,2288.4,2284.6,15.829889]
[1625466101121,14.2128,2288.4,2284.7,1.0]
[1625466101221,5.0,2287.7,2284.7,1.0]
[1625466101523,5.0,2287.7,2284.8,15.972057]
[1625466101621,5.0,2287.7,2284.9,3.2247]
[1625466101724,2.20527,2286.5,2286.3,2.20527]
[1625466102023,2.20527,2286.5,2286.3,6.70317]
[1625466102327,14.1229,2288.3,2286.3,6.70317]
[1625466102448,5.0,2288.2,2286.3,6.70317]
[1625466102523,5.0,2288.2,2286.3,5.70317]
[1625466103127,37.1655,2287.2,2286.3,5.70317]
[1625466103325,37.1655,2287.2,2286.3,3.4979]
[1625466103725,2.20527,2286.6,2286.3,3.4979]
[1625466103825,2.20527,2286.6,2286.2,2.20527]
[1625466105680,2.20527,2286.6,2286.5,2.20527]
[1625466107782,2.20527,2286.6,2286.5,7e-05]
[1625466107882,2.20527,2286.6,2284.4,3.4162]
[1625466107883,7.20527,2286.6,2283.7,16.17235912]
[1625466107984,10.05097,2286.6,2285.2,1.0]
[1625466108085,5.05097,2286.6,2283.7,16.17235912]
[1625466108186,5.05097,2286.6,2283.7,14.9459]
[1625466108734,5.05097,2286.6,2283.7,19.9459]
[1625466109034,5.05097,2286.6,2285.2,1.0]
[1625466109736,5.05097,2286.6,2286.3,2.20527]
[1625466110435,5.05097,2286.6,2285.2,1.0]
[1625466111137,5.05097,2286.6,2285.3,15.797108]
[1625466111237,5.05097,2286.6,2285.4,1.0]
[1625466111536,5.05097,2286.6,2285.5,15.936784]
[1625466111739,2.20527,2286.1,2286.0,2.20527]
[1625466111937,2.20527,2286.1,2285.8,2.20527]
[1625466112637,9.1057,2287.2,2285.8,2.20527]
[1625466112739,8.2317,2287.2,2285.8,2.20527]
[1625466112937,8.2317,2287.2,2285.8,3.20527]
[1625466113291,8.2317,2287.2,2285.8,2.20527]
[1625466113389,8.2317,2287.2,2285.8,3.20527]
[1625466113789,2.20527,2286.0,2285.8,3.20527]
[1625466113892,2.20527,2286.0,2285.8,2.20527]
[1625466115354,2.20527,2286.0,2284.2,2.2707]
[1625466115449,2.20527,2286.0,2285.2,1.0]
[1625466115752,2.20527,2285.5,2285.4,2.20527]
[1625466117663,4.79517,2285.5,2285.4,2.20527]
[1625466117762,7.00044,2285.5,2285.4,2.20527]
[1625466121116,7.00044,2285.5,2285.2,2.20527]
[1625466122774,7.00044,2285.5,2284.9,2.20527]
[1625466122975,7.00044,2285.5,2283.7,16.01254534]
[1625466123832,2.20527,2284.7,2284.6,2.20527]
[1625466125834,4.41054,2284.7,2284.6,2.20527]
[1625466129494,7.33724,2284.7,2284.6,2.20527]
[1625466130695,7.33724,2284.7,2284.4,2.20527]
[1625466130945,7.33724,2284.7,2283.7,1.0]
[1625466131849,5.13197,2284.7,2284.2,2.20527]
[1625466133814,5.13197,2284.7,2284.0,3.20527]
[1625466133914,2.20527,2284.1,2284.0,3.20527]
[1625466134867,2.20527,2284.1,2284.0,2.20527]
[1625466134967,4.97337,2284.1,2284.0,2.20527]
[1625466135416,4.97337,2284.1,2283.7,1.0]
[1625466135917,2.20527,2283.8,2283.7,1.0]
[1625466138471,2.20527,2283.8,2283.6,2.20527]
[1625466138672,2.20527,2283.8,2283.4,1.0]
[1625466138775,2.20527,2283.8,2283.2,1.0]
[1625466139933,2.20527,2283.8,2283.4,2.20527]
[1625466140028,2.20527,2283.8,2283.4,3.20527]
[1625466140579,2.20527,2283.8,2283.4,1.0]
[1625466141983,2.20527,2283.5,2283.4,1.0]
[1625466142082,2.20527,2283.5,2283.1,2.20527]
[1625466142185,2.20527,2283.5,2283.2,1.0]
[1625466143288,2.6363,2283.6,2283.2,1.0]
[1625466143387,2.20527,2283.8,2283.2,1.0]
[1625466143588,2.20527,2283.8,2283.1,2.20527]
[1625466143688,2.20527,2283.8,2283.1,3.20527]
[1625466143989,2.20527,2283.8,2283.6,2.20527]
[1625466145998,2.20527,2283.7,2283.6,2.20527]
[1625466149201,2.20527,2283.7,2283.1,3.20527]
[1625466149303,3.07487,2283.7,2283.1,3.20527]
[1625466149402,2.20527,2283.7,2283.1,3.20527]
[1625466149952,2.20527,2283.2,2283.1,5.41054]
[1625466153969,4.41054,2283.2,2283.1,5.41054]
[1625466154168,4.41054,2283.2,2283.1,4.41054]
[1625466155323,4.41054,2283.2,2283.1,5.41054]
[1625466156979,4.41054,2283.2,2283.1,4.41054]
[1625466158330,4.41054,2283.2,2283.1,5.41054]
[1625466159233,4.41054,2283.2,2283.1,4.41054]
[1625466159534,4.41054,2283.2,2283.1,5.41054]
[1625466169911,2.20527,2283.2,2283.1,5.41054]
[1625466172473,2.20527,2283.2,2283.1,4.41054]
[1625466172775,2.20527,2283.2,2283.1,5.41054]
[1625466173430,2.20527,2283.2,2283.1,4.41054]
[1625466183005,2.20527,2283.2,2283.1,5.41054]
[1625466183104,1.2833284,2285.0,2283.1,7.85964]
[1625466183305,1.2833284,2285.0,2283.1,8.74754]
[1625466183406,1.7966276,2285.1,2283.1,8.74754]
[1625466183407,14.9249,2285.2,2283.1,8.74754]
[1625466183755,14.9249,2285.2,2283.9,51.1126]
[1625466183857,14.9249,2285.2,2283.9,54.4586]
[1625466183955,14.9249,2285.2,2284.0,1.0]
[1625466184254,17.13017,2285.2,2285.1,4.41054]
[1625466184756,2.20527,2285.2,2285.1,4.41054]
[1625466186057,2.20527,2285.2,2285.1,5.41054]
[1625466186157,2.20527,2285.2,2285.1,8.58884]
[1625466186559,2.20527,2285.2,2285.1,7.58884]
[1625466189012,2.20527,2285.2,2285.1,4.41054]
[1625466189916,2.20527,2285.2,2285.1,4e-05]
[1625466190016,7.20527,2285.2,2285.1,4e-05]
[1625466190116,2.20527,2285.2,2285.1,4e-05]
[1625466190315,2.20527,2285.2,2284.8,2.20527]
[1625466190831,2.20527,2285.2,2284.6,2.20527]
[1625466192083,7.20527,2285.2,2284.6,2.20527]
[1625466192183,10.43807,2285.2,2284.6,2.20527]
[1625466192287,4.41054,2284.7,2283.2,13.9459]
[1625466192384,7.39344,2284.7,2283.2,13.9459]
[1625466192992,5.0,2284.6,2283.2,13.9459]
[1625466193092,7.39344,2284.7,2283.2,13.9459]
[1625466193199,7.39344,2284.7,2283.3,1.0]
[1625466194397,2.20527,2284.0,2283.9,2.20527]
[1625466194494,2.20527,2284.0,2283.9,3.20527]
[1625466196397,4.41054,2284.0,2283.9,3.20527]
[1625466202252,4.41054,2284.0,2283.9,2.20527]
[1625466204862,4.41054,2284.0,2283.9,3.20527]
[1625466207769,2.16311692,2285.1,2283.9,3.20527]
[1625466207868,1.28901692,2285.1,2283.9,3.20527]
[1625466208527,2.20527,2284.4,2284.3,2.20527]
[1625466211040,2.20527,2284.4,2284.3,3.20527]
[1625466213999,2.20527,2284.4,2284.3,2.20527]
[1625466214650,2.20527,2284.4,2284.3,3.20527]
[1625466216112,2.20527,2284.4,2284.3,2.20527]
[1625466218519,2.20527,2284.4,2284.3,3.20527]
[1625466219372,2.20527,2284.4,2284.3,2.20527]
[1625466223196,2.20527,2284.4,2284.3,3.20527]
[1625466232312,2.20527,2284.4,2284.3,2.20527]
[1625466233014,2.20527,2284.4,2284.0,1.0]
[1625466233114,5.57317,2284.4,2284.0,1.0]
[1625466233219,11.44817,2284.4,2283.6,1.24582762]
[1625466233417,5.57317,2284.4,2283.6,1.24582762]
[1625466233714,5.57317,2284.4,2283.3,1.0]
[1625466233715,45.1195,2283.7,2283.3,1.0]
[1625466233816,47.6287,2283.7,2283.3,1.0]
[1625466234666,2.5092,2283.7,2283.3,1.0]
[1625466234766,2.20527,2283.5,2283.4,2.20527]
[1625466235266,2.20527,2283.5,2283.4,3.20527]
[1625466236820,4.41054,2283.5,2283.4,3.20527]
[1625466238029,4.41054,2283.5,2283.4,2.20527]
[1625466239179,4.41054,2283.5,2283.4,3.20527]
[1625466239479,4.41054,2283.5,2283.4,2.20527]
[1625466240029,4.41054,2283.5,2283.2,2.20527]
[1625466245199,4.41054,2283.5,2283.2,3.20527]
[1625466246803,4.41054,2283.5,2283.2,2.20527]
[1625466247004,4.41054,2283.5,2283.3,1.0]
[1625466247203,4.41054,2283.5,2283.2,2.20527]
[1625466248106,4e-05,2283.5,2283.2,2.20527]
[1625466248207,1.29151621,2284.0,2283.2,2.20527]
[1625466248311,1.29151621,2284.0,2283.3,1.0]
[1625466248410,1.8081227,2284.1,2283.3,1.0]
[1625466248411,1.2914788,2284.1,2283.3,1.0]
[1625466248809,1.29133387,2284.5,2284.0,41.61404]
[1625466248908,1.29133387,2284.5,2284.1,1.0]
[1625466249260,1.29129756,2284.6,2284.1,1.0]
[1625466250211,1.29125604,2284.7,2284.0,6.77384]
[1625466250571,1.29125604,2284.7,2284.1,1.0]
[1625466250714,1.29125122,2284.6,2284.1,1.0]
[1625466250913,3.49652122,2284.6,2284.5,2.20527]
[1625466252679,1.29125122,2284.6,2284.5,2.20527]
[1625466252876,1.29125122,2284.6,2284.5,4.41054]
[1625466253485,1.29125122,2284.6,2284.5,7.54974]
[1625466253675,1.29133722,2284.7,2284.5,7.54974]
[1625466254075,6.0502802,2284.8,2284.5,7.54974]
[1625466255779,6.0502802,2284.8,2284.5,6.54974]
[1625466256031,4.759,2284.8,2284.5,6.54974]
[1625466256129,4.759,2284.8,2284.6,1.0]
[1625466256481,4.759,2284.8,2284.5,4.41054]
[1625466256833,6.0502768,2284.8,2284.5,4.41054]
[1625466259137,6.0502768,2284.8,2284.6,1.0]
[1625466259436,6.0502768,2284.8,2284.5,4.41054]
[1625466259738,4.759,2284.8,2284.5,4.41054]
[1625466259840,8.1914,2284.8,2284.5,4.41054]
[1625466259938,55.9911,2284.8,2284.5,4.41054]
[1625466260145,1.2913192,2284.7,2284.5,4.41054]
[1625466264362,1.29152152,2284.6,2284.5,4.41054]
[1625466264713,2.58333125,2284.6,2283.0,1.24970287]
[1625466265018,2.20527,2284.2,2284.1,2.20527]
[1625466265115,4.34277,2284.2,2284.1,2.20527]
[1625466265617,60.90237,2284.2,2284.1,2.20527]
[1625466266016,9.34277,2284.2,2284.1,2.20527]
[1625466266120,6.15124864,2284.2,2284.1,2.20527]
[1625466266471,6.15124864,2284.2,2283.9,2.20527]
[1625466266570,5.63454724,2284.2,2283.9,2.20527]
[1625466266969,3.49729495,2284.0,2283.9,2.20527]
[1625466272511,1.29202495,2284.0,2283.9,2.20527]
[1625466272619,4.25050427,2284.2,2283.9,3.20527]
[1625466272713,4.25050427,2284.2,2283.9,6.12977]
[1625466273063,4.25050427,2284.2,2284.1,43.08117]
[1625466273164,4.25050427,2284.2,2284.1,44.08117]
[1625466273263,1.66666647,2284.2,2284.1,44.08117]
[1625466273963,1.66666647,2284.2,2284.1,3.20527]
[1625466278273,4.51466647,2284.2,2284.1,2.20527]
[1625466278624,49.15216647,2284.2,2284.1,2.20527]
[1625466279083,4.51466647,2284.2,2284.1,2.20527]
[1625466281031,6.71993647,2284.2,2284.1,2.20527]
[1625466292453,9.30502289,2284.2,2284.1,1.33527]
[1625466292935,9.30502289,2284.2,2283.3,1.0]
[1625466293233,9.30502289,2284.2,2284.0,2.20527]
[1625466293535,9.30502289,2284.2,2283.8,2.20527]
[1625466293733,6.71993647,2284.2,2283.8,2.20527]
[1625466294192,9.30485892,2284.2,2283.8,2.20527]
[1625466295037,6.71993647,2284.2,2283.8,2.20527]
[1625466295239,2.20527,2283.9,2283.8,2.20527]
[1625466296340,1.20527,2283.9,2283.8,2.20527]
[1625466296442,1.66666647,2284.2,2283.8,2.20527]
[1625466296642,1.66666647,2284.2,2283.8,5.66587]
[1625466297143,2.66666647,2284.2,2283.8,5.66587]
[1625466297243,2.66666647,2284.2,2284.1,2.20527]
[1625466297702,1.66666647,2284.2,2284.1,2.20527]
[1625466298307,2.66666647,2284.2,2284.1,2.20527]
[1625466298714,1.66666647,2284.2,2284.1,2.20527]
[1625466302710,2.66666647,2284.2,2284.1,2.20527]
[1625466311348,4.87193647,2284.2,2283.8,5.66587]
[1625466313161,46.1739,2283.9,2283.8,5.66587]
[1625466313263,47.1739,2283.9,2283.8,3.4606]
[1625466313364,49.37917,2283.9,2283.5,2.20527]
[1625466314017,51.96519526,2283.9,2283.5,2.20527]
[1625466315318,54.17046526,2283.9,2283.5,2.20527]
[1625466315770,59.17046526,2283.9,2283.5,2.20527]
[1625466317325,2.20527,2283.6,2283.5,2.20527]
[1625466317429,4.06927,2283.6,2283.5,2.20527]
[1625466320437,3.20527,2283.6,2283.5,2.20527]
[1625466320534,2.20527,2283.6,2283.5,2.20527]
[1625466321637,1.0,2283.8,2283.5,2.20527]
[1625466322535,3.58557712,2284.1,2283.5,5.00927]
[1625466322636,2.58557712,2284.1,2283.5,5.00927]
[1625466322939,1.66666647,2284.2,2283.5,5.00927]
[1625466323337,1.66666647,2284.2,2284.1,2.20527]
[1625466323538,1.66666647,2284.2,2284.1,5.08347]
[1625466323639,2.66666647,2284.2,2284.1,5.08347]
[1625466324298,2.66666647,2284.2,2284.1,2.8782]
[1625466324400,45.80386647,2284.2,2284.1,2.8782]
[1625466325204,52.10087209,2284.2,2283.5,2.20527]
[1625466325405,2.20527,2283.6,2283.5,2.20527]
[1625466325506,3.20527,2283.6,2283.5,2.20527]
[1625466327423,2.20527,2283.6,2283.5,2.20527]
[1625466327620,3.20527,2283.6,2283.5,2.20527]
[1625466332638,0.8778,2283.7,2283.5,2.20527]
[1625466332735,1.0,2283.9,2283.5,2.20527]
[1625466332836,2.58540218,2284.0,2283.5,2.20527]
[1625466333137,8.11995604,2284.3,2283.5,2.20527]
[1625466333138,4.25187327,2284.2,2283.5,2.20527]
[1625466333385,6.45714327,2284.2,2284.1,2.20527]
[1625466333685,7.45714327,2284.2,2284.1,2.20527]
[1625466334039,4.87193647,2284.2,2284.1,2.20527]
[1625466334188,3.87193647,2284.2,2284.1,2.20527]
[1625466335390,6.07720647,2284.2,2284.1,2.20527]
[1625466335493,3.87193647,2284.2,2284.1,2.20527]
[1625466335941,4.87193647,2284.2,2284.1,2.20527]
[1625466337096,7.45709397,2284.2,2284.1,2.20527]
[1625466337398,7.45709397,2284.2,2284.1,4.41054]
[1625466337495,4.87193647,2284.2,2284.1,4.41054]
[1625466337846,9.87193647,2284.2,2284.1,4.41054]
[1625466338048,7.45718371,2284.2,2284.1,4.41054]
[1625466338449,12.45718371,2284.2,2284.1,4.41054]
[1625466339099,7.45718371,2284.2,2284.1,4.41054]
[1625466339952,12.45718371,2284.2,2284.1,4.41054]
[1625466340519,9.87193647,2284.2,2284.1,4.41054]
[1625466341018,12.45719368,2284.2,2284.1,4.41054]
[1625466341416,13.75416829,2284.2,2284.1,4.41054]
[1625466341520,11.16891108,2284.2,2284.1,4.41054]
[1625466342068,6.16891108,2284.2,2284.1,4.41054]
[1625466342171,4.87193647,2284.2,2284.1,4.41054]
[1625466342470,7.45725974,2284.2,2284.1,4.41054]
[1625466342571,8.75428467,2284.2,2284.1,4.41054]
[1625466342834,6.1689614,2284.2,2284.1,4.41054]
[1625466343036,11.1689614,2284.2,2284.1,4.41054]
[1625466343586,6.1689614,2284.2,2284.1,4.41054]
[1625466344438,5.1689614,2284.2,2284.1,7.11594]
[1625466344738,2.9636914,2284.2,2284.1,7.11594]
[1625466344839,1.66666647,2284.2,2284.1,7.11594]
[1625466345896,2.58504307,2284.7,2284.3,44.6375]
[1625466346545,4.78991867,2285.0,2284.3,44.6375]
[1625466347496,4.78991867,2285.0,2284.9,7.10474]
[1625466347696,2.20527,2285.0,2284.9,7.10474]
[1625466348648,2.20527,2285.0,2284.9,2.6942]
[1625466348747,2.20527,2285.0,2284.1,2.7054]
[1625466349447,2.20527,2285.0,2284.9,2.20527]
[1625466349697,3.20527,2285.0,2284.9,2.20527]
[1625466350650,3.20527,2285.0,2284.9,4.93397]
[1625466350856,2.20527,2285.0,2284.9,4.93397]
[1625466354408,3.20527,2285.0,2284.9,4.93397]
[1625466356926,3.20527,2285.0,2284.9,2.7287]
[1625466357026,12.01387,2285.0,2283.6,13.5356]
[1625466357279,14.59594914,2285.0,2283.6,13.5356]
[1625466357480,2.20527,2284.4,2284.3,2.20527]
[1625466357578,3.20527,2284.4,2284.3,2.20527]
[1625466358743,2.20527,2284.4,2284.3,2.20527]
[1625466359192,3.20527,2284.4,2284.3,2.20527]
[1625466359292,2.20527,2284.4,2284.3,2.20527]
[1625466359495,4.41054,2284.4,2284.3,2.20527]
[1625466360096,5.41054,2284.4,2284.3,2.20527]
[1625466361357,5.41054,2284.4,2284.0,2.20527]
[1625466361448,6.28294,2284.4,2284.0,2.20527]
[1625466361550,2.20527,2284.1,2284.0,2.20527]
[1625466361647,3.20527,2284.1,2284.0,2.20527]
[1625466363802,3.20527,2284.1,2283.6,2.20527]
[1625466365605,2.20527,2283.7,2283.6,4.41054]
[1625466369074,2.20527,2284.1,2284.0,39.234]
[1625466369176,2.20527,2284.1,2284.0,41.566]
[1625466369374,4.759,2284.4,2284.0,41.566]
[1625466369474,2.58269044,2284.6,2284.0,41.566]
[1625466369576,2.20527,2284.7,2284.5,4.41054]
[1625466369674,2.20527,2284.7,2284.5,7.71894]
[1625466376202,4.759,2285.0,2284.5,7.71894]
[1625466376598,4.759,2285.0,2284.8,44.7772]
[1625466376954,4.759,2285.0,2284.5,7.71894]
[1625466377458,5.759,2285.0,2284.5,7.71894]
[1625466377649,5.759,2285.0,2284.9,2.20527]
[1625466378501,4.759,2285.0,2284.9,2.20527]
[1625466379604,3.87193667,2285.1,2284.9,2.20527]
[1625466381109,4.87193667,2285.1,2284.9,2.20527]
[1625466381657,4.87193667,2285.1,2285.0,2.20527]
[1625466381757,4.87193667,2285.1,532.75,35.0]
[1625466381900,8.04363667,2285.1,2281.2,17.28954883]
[1625466381967,8.04363667,2285.1,2283.2,2.48516628]
[1625466382409,8.04363667,2285.1,2283.9,53.0113]
[1625466383512,8.04363667,2285.1,2283.8,2.5395]
[1625466383611,8.04363667,2285.1,2283.1,2.48700098]
[1625466383810,2.20527,2284.4,2284.3,2.20527]
[1625466383945,4.08047,2284.4,2284.3,2.20527]
[1625466384173,2.20527,2284.4,2284.3,2.20527]
[1625466384262,2.20527,2284.4,2284.0,2.20527]
[1625466384263,3.20527,2284.4,2284.0,2.20527]
[1625466384563,3.20527,2284.4,2282.7,2.4882182]
[1625466384763,3.20527,2284.4,2282.6,2.48852995]
[1625466384966,7.96427,2284.4,2282.6,2.48852995]
[1625466385262,7.96427,2284.4,2282.7,2.48827077]
[1625466385362,6.96427,2284.4,2282.7,2.48827077]
[1625466385463,1.0,2284.3,2282.7,2.48827077]
[1625466385613,1.0,2284.3,2282.7,18.36752277]
[1625466385715,1.0,2284.3,2284.1,2.20527]
[1625466386115,1.881,2284.3,2284.1,2.20527]
[1625466387669,2.20527,2284.2,2284.1,2.20527]
[1625466387774,3.20527,2284.2,2284.1,2.20527]
[1625466390086,3.20527,2284.2,2282.5,5.87487162]
[1625466390284,3.20527,2284.2,2282.5,3.3868]
[1625466390387,3.20527,2284.2,2282.4,2.48966901]
[1625466390585,8.20527,2284.2,2282.3,2.48987351]
[1625466390785,8.20527,2284.2,2282.5,15.899502]
[1625466391086,42.6938,2284.0,2282.4,15.972279]
[1625466391186,1.0,2283.9,2282.4,15.972279]
[1625466391286,1.0,2283.9,2282.3,2.48987351]
[1625466391586,1.0,2283.9,2282.4,15.771744]
[1625466391690,2.20527,2283.4,2283.3,2.20527]
[1625466391787,3.20527,2283.4,2283.3,2.20527]
[1625466391887,5.77137,2283.4,2283.3,2.20527]
[1625466393741,7.97664,2283.4,2283.3,2.20527]
[1625466402507,12.97664,2283.4,2282.0,17.17539852]
[1625466402615,12.97664,2283.4,2282.0,2.49109852]
[1625466403012,12.97664,2283.4,2280.9,7.47553237]
[1625466403013,7.97664,2283.4,2281.4,13.6234]
[1625466403113,7.97664,2283.4,2281.6,51.2264]
[1625466403514,5.0,2283.3,2281.6,51.2264]
[1625466403613,1.0,2283.2,2281.6,51.2264]
[1625466403816,2.20527,2282.5,2282.4,2.20527]
[1625466405121,3.20527,2282.5,2282.4,2.20527]
[1625466405272,2.20527,2282.5,2282.4,2.20527]
[1625466405769,5.41054,2282.5,2282.4,2.20527]
[1625466407581,5.41054,2282.5,2281.4,13.6234]
[1625466407780,3.20527,2282.5,2281.9,2.20527]
[1625466408237,8.20527,2282.5,2281.9,2.20527]
[1625466408640,49.0602,2282.0,2281.9,2.20527]
[1625466408737,50.0602,2282.0,2281.9,2.20527]
[1625466408837,52.5851,2282.0,2281.9,2.20527]
[1625466409037,3.5249,2282.0,2281.9,2.20527]
[1625466409238,3.5249,2282.0,2281.7,2.20527]
[1625466409943,4.41054,2281.8,2281.7,2.20527]
[1625466410140,5.41054,2281.8,2281.7,2.20527]
[1625466410997,4.41054,2281.8,2281.7,2.20527]
[1625466412504,5.872,2283.5,2281.7,2.20527]
[1625466412620,2.57647484,2283.8,2281.7,5.29267]
[1625466412737,16.55148584,2283.9,2281.7,5.29267]
[1625466413003,13.9751,2283.9,2281.8,16.010486]
[1625466413106,5.0,2283.8,2281.8,16.010486]